Cogmind - Beta 13 @@@ ROGUE MODE // 2024.04.04 @ 15:41:14 Player: Struisvogel Result: Core destroyed Performance ------------- Evolutions (2) 1000 Regions Visited (4) 800 Robots Destroyed (56) 280 Value Destroyed (2896) 2896 Prototype IDs (1) 20 Alien Tech Used (0) 0 Bonus (517) 517 TOTAL SCORE: 5513 Bonus ------- High Alert Combat Kills 317 Entered Garrisons 200 Cogmind --------- Core Integrity 0/550 Matter 222/300 Energy 130/185 System Corruption 7% Temperature Critical (602) Movement Treading (240) Ox1 Location -8/Garrison Parts ------- > --- POWER (2) -------- Light Ion Engine Light Nuclear Core > --- PROPULSION (3) --- Light Treads Light Treads Light Treads > --- UTILITY (3) ------ High-capacity Storage Unit Medium Armor Plating Hardened Light Armor Plating > --- WEAPON (3) ------- Heavy Laser Heavy Laser > --- INVENTORY (20) --- Improved Ion Engine Light Treads Light Treads Light Treads Aluminum Leg Aluminum Leg Improved Aluminum Leg Large Storage Unit Large Storage Unit Advanced Weight Redist. System Heavy Laser Peak State ------------ > --- POWER ------------ Nuclear Core > --- PROPULSION ------- Carbon-fiber Leg Carbon-fiber Leg Carbon-fiber Leg > --- UTILITY ---------- High-capacity Storage Unit Medium Matter Pod System Shield > --- WEAPON ----------- Improved EM Shotgun Minigun > --- INVENTORY -------- Nuclear Core Nuclear Core Light Nuclear Core Light Treads Aluminum Leg Aluminum Leg Carbon-fiber Leg Large Storage Unit Large Storage Unit Advanced Weight Redist. System Medium Armor Plating Hardened Light Armor Plating Improved EM Shotgun Minigun [Rating: 26] Favorites ----------- Power Nuclear Core Engine Light Ion Engine Power Core Nuclear Core Propulsion Light Treads Treads Light Treads Leg Carbon-fiber Leg Wheel Wheel Utility High-capacity Storage Unit Device Improved Heat Sink Storage High-capacity Storage Unit Hackware System Shield Protection Core Shielding Weapon Beam Rifle Energy Gun Beam Rifle Ballistic Gun Assault Rifle Launcher Grenade Launcher Special Weapon Remote Datajack Build | -11 -10 -9 -8 -8 ------- Run | Yrd Mat Mat Mat Gar Slots Evolved 4 | . . 2 2 . Power 1 | . . . 1 . Propulsion 1 | . . 1 . . Utility 1 | . . 1 . . Weapon 1 | . . . 1 . Parts Attached 59 | 7 7 13 3 29 Power 12 | 1 . 1 1 9 Engine 5 | 1 . . . 4 Core 7 | . . 1 1 5 Reactor . | . . . . . Propulsion 15 | 3 . 5 . 7 Treads 7 | 2 . . . 5 Leg 7 | . . 5 . 2 Wheel 1 | 1 . . . . Hover . | . . . . . Flight . | . . . . . Utility 15 | 1 6 3 . 5 Device 1 | . . . . 1 Storage 8 | 1 6 1 . . Processor . | . . . . . Hackware 1 | . . 1 . . Protection 5 | . . 1 . 4 Artifact . | . . . . . Weapon 17 | 2 1 4 2 8 Energy Gun 10 | . . 2 2 6 Energy Cannon . | . . . . . Ballistic Gun 5 | 2 . 2 . 1 Ballistic Cannon . | . . . . . Launcher 1 | . 1 . . . Special Weapon 1 | . . . . 1 Impact Weapon . | . . . . . Slashing Weapon . | . . . . . Piercing Weapon . | . . . . . Special Melee Weapon . | . . . . . Unidentified Prototypes 1 | . . 1 . . Parts Lost 29 | . . 6 . 23 Power 6 | . . . . 6 Propulsion 6 | . . 2 . 4 Utility 6 | . . 1 . 5 Weapon 11 | . . 3 . 8 Highest Loss Streak 7 | . . 3 . 7 To Critical Strikes . | . . . . . Average Slot Usage (%) 82 | . 97 93 100 72 Engine 6 | . 14 . . 6 Core 7 | . . 10 18 8 Treads 12 | . 28 3 . 10 Leg 9 | . . 26 27 5 Device 3 | . . . . 5 Storage 15 | . 25 22 18 10 Hackware 1 | . . 6 . . Protection 5 | . . 1 9 8 Energy Gun 10 | . . 7 18 15 Ballistic Gun 6 | . 14 10 9 2 Launcher 3 | . 13 3 . . Naked Turns . | . . . . . Heaviest Build 150 | 13 150 60 66 68 Greatest Support 60 | 20 40 45 40 60 Greatest Overweight (x) 19 | 2 3 2 1 19 Average Overweight (x) 1 | . . . 1 3 Largest Inventory Capacity 30 | 8 30 20 20 20 Average Capacity 17 | 7 9 18 20 20 Most Carried 15 | 6 8 15 11 15 Average Carried 10 | 4 7 13 10 11 Final Capacity 20 | 8 15 20 20 20 Final Carried 12 | 6 8 12 11 11 Class Distribution -------------------- 61% | Mutant 20% | Scavenger-Tank 9% | Tank 7% | Scavenger-Mutant Dominant Class ---------------- Mutant | -10/Materials Mutant | -9/Materials Tank | -8/Materials Mutant | -8/Garrison Resources | -11 -10 -9 -8 -8 ----------- Run | Yrd Mat Mat Mat Gar Matter Collected 1320 | 226 154 375 . 565 Remotely . | . . . . . Salvage Created 2081 | . 145 643 . 1293 Parts 107 | . 15 37 . 55 Haulers Intercepted 1 | . . 1 . . Recyclers Shooed . | . . . . . Parts Field Recycled . | . . . . . Retrieved Matter . | . . . . . Parts Self-Destructed . | . . . . . Prevented . | . . . . . Kills | -11 -10 -9 -8 -8 ------- Run | Yrd Mat Mat Mat Gar Combat Hostiles Destroyed 45 | . 4 14 . 27 Guns 38 | . 1 12 . 25 AOE 5 | . 3 2 . . Classes Destroyed 10 | . 4 4 . 2 Worker 2 | . 1 1 . . Builder 5 | . 2 3 . . Tunneler 1 | . 1 . . . Hauler 1 | . . 1 . . Watcher 2 | . . 2 . . Swarmer 6 | . . 3 . 3 Grunt 25 | . 4 10 . 11 Duelist 3 | . . . . 3 Sentry 9 | . . 1 . 8 Programmer 2 | . . . . 2 Best Kill Streak 6 | . 2 6 . 3 Combat Bots Only 3 | . 2 3 . 3 Max Kills in Single Turn 2 | . 2 2 . 2 Gunslinging 1 | . . . . 1 Exploded 1 | . 1 1 . . Melee . | . . . . . Uniques/NPCs Destroyed . | . . . . . Combat | -11 -10 -9 -8 -8 -------- Run | Yrd Mat Mat Mat Gar Hostile Shots Fired 304 | . 9 75 . 220 Missed 77 | . 3 16 . 58 Damage Taken 3603 | . 211 908 . 2484 Core 812 | . 83 124 . 605 Absorbed by Shields 7 | . . . . 7 Redirected to Shielding 39 | . . . . 39 Core Remaining (%) 78 | 100 66 69 . . Volleys Fired 146 | . 11 40 . 95 Largest 3 | . 2 2 . 3 Hottest 181 | . 50 70 . 181 Shots Fired 289 | . 22 70 . 197 Gun 273 | . 11 65 . 197 Cannon . | . . . . . Launcher 16 | . 11 5 . . Special . | . . . . . Kinetic 84 | . 11 38 . 35 Thermal 119 | . . . . 119 Explosive 16 | . 11 5 . . Electromagnetic 70 | . . 27 . 43 Robot Hit Streak 17 | . 3 7 . 17 Robot Miss Streak 7 | . 3 7 . 7 Penetration Max . | . . . . . Secondary Targets 4 | . . 1 . 3 Max Gunslinging Chain 1 | . . 1 . 1 Shots Hit Robots 181 | . 12 40 . 129 Core Hits 96 | . 14 30 . 52 Critical Kills . | . . . . . Critical Parts Destroyed . | . . . . . Critical Strikes 8 | . . . . 8 Burn 8 | . . . . 8 Melee Attacks . | . . . . . Impact . | . . . . . Slashing . | . . . . . Piercing . | . . . . . Sneak Attacks . | . . . . . Combat Hostiles . | . . . . . Follow-up Attacks . | . . . . . Damage Inflicted 3888 | . 472 1208 . 2208 Guns 2883 | . 69 606 . 2208 Cannons . | . . . . . Explosions 998 | . 403 595 . . Melee . | . . . . . Ramming 7 | . . 7 . . Kinetic 687 | . 69 294 . 324 Thermal 1383 | . . 60 . 1323 Explosive 938 | . 403 535 . . Electromagnetic 873 | . . 312 . 561 Impact . | . . . . . Slashing . | . . . . . Piercing . | . . . . . Highest Corruption 7 | . . . . 7 Average Corruption 6 | . . . . 6 Corruption Purged . | . . . . . Corruption Blocked . | . . . . . Effects 62 | . . . . 62 Message Errors 19 | . . . . 19 Matter Fused 11 | . . . . 11 Heat Flow Errors 8 | . . . . 8 Energy Discharges 7 | . . . . 7 Parts Rejected 1 | . . . . 1 Data Loss (minor) 7 | . . . . 7 Data Loss (major) 2 | . . . . 2 Misfires 2 | . . . . 2 Alerts 2 | . . . . 2 Weapon Failures 3 | . . . . 3 Overload Shots . | . . . . . Overflow Damage 106 | . . 90 . 16 Projectiles . | . . . . . Explosions 106 | . . 90 . 16 Melee . | . . . . . Knockbacks 1 | . . 1 . . Impact 1 | . . 1 . . Kinetic . | . . . . . Secondary . | . . . . . Self-Inflicted Damage 461 | . 124 266 . 71 Shots 12 | . 6 5 . 1 Rammed . | . . . . . Targets Rammed 1 | . . 1 . . Kicked 1 | . . 1 . . Crushed . | . . . . . Highest Temperature 668 | . 23 120 . 668 Average Temperature 157 | . 8 39 . 188 Received Heat Transfer 1233 | . 66 294 . 873 Effects 32 | . . . . 32 Shutdowns 10 | . . . . 10 Energy Bleed 1 | . . . . 1 Interference 5 | . . . . 5 Matter Decay 2 | . . . . 2 Damage (minor) 3 | . . . . 3 Damage (major) 9 | . . . . 9 Damage (core) 2 | . . . . 2 Siege Activations . | . . . . . Robots Corrupted . | . . . . . Combat Hostiles . | . . . . . Parts Fried 5 | . . 1 . 4 Impact Corruptions . | . . . . . Robots Melted 2 | . . . . 2 Combat Hostiles 2 | . . . . 2 Parts Melted 13 | . . . . 13 Heat Transferred 3615 | . . 100 . 3515 Parts Sabotaged . | . . . . . Parts Stolen . | . . . . . Parts Stripped . | . . . . . Power Chain Reactions 1 | . . 1 . . Alert | -11 -10 -9 -8 -8 ------- Run | Yrd Mat Mat Mat Gar Peak Influence 1389 | . 227 340 157 1389 Initial 143 | . . 11 143 102 Average 382 | . 73 178 148 569 Maximum Alert Level 4 | . 1 1 . 4 Low Security (%) 36 | 100 88 52 100 10 Level 1 28 | . 11 47 . 29 Level 2 15 | . . . . 27 Level 3 13 | . . . . 22 Level 4 6 | . . . . 10 Level 5 . | . . . . . High Security . | . . . . . Max Security . | . . . . . Squads Dispatched 3 | . . 3 . . Investigation . | . . . . . Extermination . | . . . . . Reinforcement 3 | . . 3 . . Assault . | . . . . . Garrison . | . . . . . Intercept . | . . . . . Searches Triggered . | . . . . . Construction Impeded 1 | . . 1 . . Haulers Reinforced . | . . . . . Active Scanning Responses . | . . . . . Cargo Convoy Interrupts . | . . . . . Stealth | -11 -10 -9 -8 -8 --------- Run | Yrd Mat Mat Mat Gar Distress Signals 4 | . . 2 . 2 Communications Jammed . | . . . . . Distress Signals . | . . . . . Times Spotted 60 | . 3 22 . 35 Peak Tracking Total 4 | . 2 4 . 4 Tactical Retreats 3 | . . . . 3 Traps | -11 -10 -9 -8 -8 ------- Run | Yrd Mat Mat Mat Gar Traps Triggered 5 | . . . . 5 Indirectly . | . . . . . Trap Hack Attempts . | . . . . . Triggered . | . . . . . Disarmed . | . . . . . Reprogrammed . | . . . . . Reused . | . . . . . Traps Extracted . | . . . . . Installed . | . . . . . Triggered . | . . . . . Machines | -11 -10 -9 -8 -8 ---------- Run | Yrd Mat Mat Mat Gar Machines Disabled 15 | . 2 5 . 8 Max in Single Turn 2 | . 2 2 . 2 Garrison Relay 4 | . . . . 4 Phase Generator 1 | . . . . 1 Machines Repaired . | . . . . . Machines Dismantled . | . . . . . Machines Sabotaged . | . . . . . Overloaded Fab Kills . | . . . . . Hacking | -11 -10 -9 -8 -8 --------- Run | Yrd Mat Mat Mat Gar Machines Accessed 8 | . . 4 2 2 Terminals 5 | . . 2 1 2 Fabricators . | . . . . . Repair Stations . | . . . . . Recycling Units 2 | . . 2 . . Scanalyzers . | . . . . . Garrison Access 1 | . . . 1 . Total Hacks 18 | . . 12 3 3 Successful 11 | . . 8 2 1 Failed 7 | . . 4 1 2 Catastrophic 1 | . . . . 1 Database Lockouts . | . . . . . Manual . | . . . . . Terminals 12 | . . 8 1 3 Fabricators . | . . . . . Repair Stations . | . . . . . Recycling Units 4 | . . 4 . . Scanalyzers . | . . . . . Garrison Access 2 | . . . 2 . Terminal Hacks 6 | . . 4 1 1 Record 3 | . . 2 1 . Emergency Access Points 1 | . . . . 1 Recall Investigation 1 | . . 1 . . Hauler Manifests 1 | . . 1 . . Fabricator Hacks . | . . . . . Repair Station Hacks . | . . . . . Recycling Unit Hacks 4 | . . 4 . . Recycle Component 1 | . . 1 . . Process 2 | . . 2 . . Report Inventory 1 | . . 1 . . Scanalyzer . | . . . . . Garrison Access Hacks 1 | . . . 1 . Unlock Access 1 | . . . 1 . Unauthorized Hacks . | . . . . . Terminals . | . . . . . Fabricators . | . . . . . Repair Stations . | . . . . . Recycling Units . | . . . . . Scanalyzers . | . . . . . Garrison Access . | . . . . . Data Cores Recovered . | . . . . . Used . | . . . . . Hacking Detections 3 | . . 1 . 2 Full Trace Events 1 | . . . . 1 Feedback Events . | . . . . . Feedback Blocked . | . . . . . Robot Schematics Acquired . | . . . . . Robots Built . | . . . . . Authchips . | . . . . . Time . | . . . . . Total Robot Build Rating . | . . . . . Part Schematics Acquired . | . . . . . Parts Built . | . . . . . Authchips . | . . . . . Time . | . . . . . Total Part Build Rating . | . . . . . Parts Repaired . | . . . . . Time . | . . . . . Parts Recycled 1 | . . 1 . . Recycled Matter 7 | . . 7 . . Retrieved Matter . | . . . . . Retrieved Components . | . . . . . Parts Scanalyzed . | . . . . . Part Schematics Acquired . | . . . . . Parts Damaged . | . . . . . Bothacking | -11 -10 -9 -8 -8 ------------ Run | Yrd Mat Mat Mat Gar Used RIF Installer . | . . . . . Robots Hacked . | . . . . . Non-combat . | . . . . . Combat . | . . . . . Robot Hacks Applied . | . . . . . Relay Couplers Released 14 | . . . . 14 Machine Destruction 14 | . . . . 14 Fabnet Peak Effective % . | . . . . . Robots Rewired . | . . . . . Allies Hacked . | . . . . . Hacks Repelled . | . . . . . Allies | -11 -10 -9 -8 -8 -------- Run | Yrd Mat Mat Mat Gar Total Allies . | . . . . . Largest Group . | . . . . . Highest-Rated Group . | . . . . . Highest-Rated Ally . | . . . . . Total Orders . | . . . . . Ally Attacks . | . . . . . Total Damage . | . . . . . Kills . | . . . . . Allies Corrupted . | . . . . . Allies Melted . | . . . . . Intel | -11 -10 -9 -8 -8 ------- Run | Yrd Mat Mat Mat Gar Robot Analysis Total . | . . . . . Derelict Logs Recovered . | . . . . . Drone Launches . | . . . . . Drone Recoveries . | . . . . . Exploration | -11 -10 -9 -8 -8 ------------- Run | Yrd Mat Mat Mat Gar Turns Passed 4187 | 97 759 785 98 2448 Spaces Moved 1621 | 69 440 390 50 672 Core 115 | 29 . . . 86 Treads 910 | 36 440 55 . 379 Legs 592 | . . 335 50 207 Wheels 4 | 4 . . . . Hover . | . . . . . Flight . | . . . . . Fastest Speed 50 | 50 160 120 190 160 Average Speed 227 | 115 160 166 190 320 Slowest Speed 1000 | 160 400 260 190 1000 Overloaded Moves . | . . . . . Propulsion Burnouts . | . . . . . Robots Hopped . | . . . . . Cave-ins Triggered . | . . . . . Exploration Rate (%) 33 | 4 50 32 5 75 Regions Visited 4 Branch Regions . Pre-discovered Areas . | . . . . . Known Exits Taken 1 | . . . 1 . Unknown Exits Taken 3 | 1 1 1 . . Scrap Searched . | . . . . . Spaces Dug . | . . . . . Terrain Destroyed 212 | . 80 57 . 75 Melee . | . . . . . Projectile . | . . . . . AOE 212 | . 80 57 . 75 Terrain Rammed . | . . . . . Walls Destroyed . | . . . . . Machines Disabled . | . . . . . Actions | -11 -10 -9 -8 -8 --------- Run | Yrd Mat Mat Mat Gar Total 1885 | 84 472 461 53 815 Wait . | . . . . . Move 1612 | 68 439 389 49 667 Hop . | . . . . . Pick Up 38 | 9 8 13 1 7 Fast Attach 21 | 3 3 3 . 12 Attach 22 | 3 1 5 2 11 Detach . | . . . . . Swap 16 | 1 3 5 1 6 Drop 12 | . 7 5 . . Fire 146 | . 11 40 . 95 Melee . | . . . . . Ram . | . . . . . Kick 1 | . . 1 . . Crush . | . . . . . Escape Stasis 17 | . . . . 17 Rewire . | . . . . . Trap . | . . . . . Miscellaneous . | . . . . . Route ------- -11/Scrapyard -10/Materials (discovered 2 exits: *Mat / [*Min]) -9/Materials -8/Materials -8/Garrison (discovered 1 exit: [*Mat]) History --------- Turn | Location | Event 26 | -11/Scrapyard | Discovered new exit (range 16) 98 | -11/Scrapyard | Entered Materials 294 | -10/Materials | Discovered new exit (range 7) 334 | -10/Materials | Build established: Mutant 792 | -10/Materials | Discovered new exit (range 5) 857 | -10/Materials | Entered another Materials area 857 | -9/Materials | Evolved 2 slots: Propulsion x1, Utility x1 1391 | -9/Materials | Lost 3 parts (2n1u) 1617 | -9/Materials | Discovered new exit (range 8) 1642 | -9/Materials | Entered another Materials area 1642 | -8/Materials | Evolved 2 slots: Power x1, Weapon x1 1738 | -8/Materials | Identified exit to Garrison 1740 | -8/Materials | Entered Garrison 1752 | -8/Garrison | Triggered checkpoint 1790 | -8/Garrison | Triggered checkpoint 1852 | -8/Garrison | Garrison Relay disabled 1941 | -8/Garrison | Build established: Tank 1976 | -8/Garrison | Triggered checkpoint 2100 | -8/Garrison | Lost 7 parts (1p1n2u3w) 2175 | -8/Garrison | Discovered new exit (range 13) 2210 | -8/Garrison | Attempted to access garrison exit controls, blocked by remote lockdown 2292 | -8/Garrison | Lost 5 parts (1p3n1w) 2373 | -8/Garrison | Build established: Mutant 2709 | -8/Garrison | Phase Generator disabled 3040 | -8/Garrison | Core integrity fell below 50% 3070 | -8/Garrison | Lost 3 parts (2p1u) 3330 | -8/Garrison | Triggered checkpoint 3458 | -8/Garrison | Garrison Relay disabled 3505 | -8/Garrison | Garrison Relay disabled 3530 | -8/Garrison | Triggered checkpoint 3544 | -8/Garrison | Build established: Scavenger-Tank 3780 | -8/Garrison | Triggered checkpoint 3791 | -8/Garrison | Core integrity fell below 20% 3960 | -8/Garrison | Triggered checkpoint 4036 | -8/Garrison | Lost 3 parts (1p2u) 4038 | -8/Garrison | Garrison Relay disabled 4189 | -8/Garrison | Core destroyed Last Messages --------------- Y-45 Defender suffers critical hit (Burn). Beam Rifle destroyed. Y-45 Defender heat spikes uncontrollably. Melted Beam Rifle. Y-45 Defender suffers critical hit (Burn). Y-45 Defender heat damages Heat Sink. Y-45 Defender critical meltdown. Hvy. Assault Rifle melted. Power failure, Lgt. Nuclear Core shutdown. Heat Sink melted. Y-45 Defender destroyed. Overheating: System interference. Hvy. Laser temporarily disabled. Power failure, Lgt. Ion Engine shutdown. Overheating: Hcp. Storage Unit damaged (-203). Power failure, Lgt. Nuclear Core shutdown. System corrupted: Heat flow error (+255). Overheating: Matter decay (-48). Overheating: Core damaged (-88). [Achievement: 5k Club] Map ----- +----------------------------------------------------+ | ???????????????????????#####?????????????????????? | | ???????????????????????#"""#?????????????????????? | | ???????????????????????# "#?????????????????????? | | ???????????????#!!!##### "#?????????????????????? | | ???????????????#! + ! #?????????????????????? | | ???????????????#!!!##### ! #?????????????????????? | | ???????????????????????# !"##########????????????? | | ???????????????????????# #????????????? | | ???????????????????????####### =%## #????????????? | | ?????????????????????????????# ## #????????????? | | ?????????????????????????????##!### #????????????? | | ??????????????????????????????#%#?# #????????????? | | ??????????????????????????????# #?# #???###??????? | | ????????????????### ########### ### #####T####???? | | ??????????????? #???? | | ??????????????? #???? | | ??????????????? #???? | | ?????????????????## ########### ### ###### #???? | | ??????????????????????????????# #?# #????# #???? | | ??????????????????????????????# #?# #????# #???? | | ??????????????????????????????# ### ###### #???? | | ????????????????????????###???# #???? | | ????????????????????????#!#???# ########## #???? | | ??????????????????????###%###?# #????????# #???? | | ??????????????????????#!!=!!#?# #????????# #???? | | ??????????????????????#!!@!!#?# #????????# #???? | | ??????????????????????# ### #????????# #??? | | ??????????????????????+^ + #????????# ## | | ??????????????????????# ### ########## | | ??????????????????????#!! ]]#?# %% | | ??????????????????????#!!%]]#?####### #### | | ??????????????????????### ###???????# #??# ## | | ????????????????????????# #?????????# #### ## ^ | | ????????????????????????###?????????#=%[ | | ????????????????????????????????????####% | | ???????????????????????????????????????# | | ???????????????????????????????????????# | | ???????????????????????????????????????### ## | | ?????????????????????????????????????????# ## | | ??????????+?????????????????????????????## | | ????????????????????????????????????? | | ???????????????????????????????????????### | | ?????????????????????????????????????????## ## | | ??????????????????????????????????????????# ## | | ??????????????????????????????????????????# ##### | | ??????????+??????????????????????????????? #???? | | ?????????????????????????????????????????## #???? | | ??????????????????????????????????????????# #???? | | ??????????????????????????????????????????? #???? | | ??????????????????????????????????????????? ????? | +----------------------------------------------------+ Best States ------------- Heat Dissipation 45 Energy Generation 24 Energy Capacity 380 Matter Stores 399 Matter Capacity 400 Sight Range 16 Terrain Scan Density 10 Armor Coverage 375 Core Shielding 20 Evasion (%) 55 Recoil Reduction 3 Defensive Hacking 10 Item Schematics ----------------- None Robot Schematics ------------------ None Fabricated ------------ Nothing Alien Tech Used ----------------- None Achievements -------------- 5k Club It's Just You Risk Taker Shopping List Tank Challenges ------------ None Game ------ Seed TransportServoBlade Manual? 0 Play Time 00:27:10 Cumulative 1.7 hours Start 2024.04.04 @ 15:13:55 End 2024.04.04 @ 15:41:14 Sessions 1 Manual Loads 0 Difficulty Rogue Special Mode None Game No. 5 Rogue 5 Adventurer 0 Explorer 0 Win Type - Total 0 Types 0/0/0/0/0/0/0/0/0 Lore% 1 Gallery% 6 Achievement% 7 Wizard Run 0 Options --------- Layout 1 ASCII 0 Keyboard 0 Movement Arrows Keybinds 0 Fullscreen 1 Font 24/Smallcaps Map View 50x35 Zoom Use 0% Tactical HUD 0 Map Filters NONE Filters NONE Steam 1 RUN: 74bc30be-f1ed-4103-964f-57120cf4d460